lending/lending_fUSD_20240731
["ID","MTS","AMOUNT","RATE_DAILY","PERIOD"]
[333712485,1722395445426,-268.073743,0.00010986,2]
[333712486,1722395445436,-268.073743,0.00010986,2]
[333712487,1722395445445,-268.073743,0.00010986,2]
[333712488,1722395445455,-268.073743,0.00010986,2]
[333712489,1722395445465,-268.073743,0.00010986,2]
[333712490,1722395445474,-197.032884,0.00010986,2]
[333712491,1722395445483,-197.032884,0.00010986,2]
[333712492,1722395445492,-197.032884,0.00010986,2]
[333712493,1722395445501,-197.032884,0.00010986,2]
[333712494,1722395445511,-197.032884,0.00010986,2]
[333712495,1722395445520,-197.032884,0.00010986,2]
[333712496,1722395445529,-174.157114,0.00010986,2]
[333712497,1722395445539,-174.157114,0.00010986,2]
[333712498,1722395445548,-174.157114,0.00010986,2]
[333712499,1722395445557,-174.157114,0.00010986,2]
[333712500,1722395445568,-151.0,0.00010986,2]
[333712501,1722395445578,-151.30558,0.00010986,2]
[333712502,1722395445588,-446.329501,0.00010986,2]
[333712503,1722395445598,-446.329501,0.00010986,2]
[333712504,1722395445608,-446.329501,0.00010986,2]
[333712505,1722395445618,-446.329501,0.00010986,2]
[333712506,1722395445627,-242.517455,0.00010986,2]
[333712507,1722395445640,-446.329501,0.00010986,2]
[333712508,1722395445650,-242.517455,0.00010986,2]
[333712509,1722395445659,-446.329501,0.00010986,2]
[333712510,1722395445669,-151.0,0.00010986,2]
[333712511,1722395445679,-151.0,0.00010986,2]
[333712512,1722395445690,-151.0,0.00010986,2]
[333712513,1722395445700,-242.517455,0.00010986,2]
[333712514,1722395445710,-242.517455,0.00010986,2]
[333712515,1722395445719,-151.0,0.00010986,2]
[333712516,1722395445730,-151.0,0.00010986,2]
[333712517,1722395445741,-151.0,0.00010986,2]
[333712518,1722395445752,-2039.784458,0.00010986,2]
[333712519,1722395445763,-2039.784458,0.00010986,2]
[333712520,1722395445772,-151.0,0.00010986,2]
[333712521,1722395445782,-2039.784458,0.00010986,2]
[333712522,1722395445791,-2039.784458,0.00010986,2]
[333712523,1722395445802,-1534.430711,0.00010986,2]
[333712524,1722395445812,-1534.430711,0.00010986,2]
[333712525,1722395445822,-1534.430711,0.00010986,2]
[333712526,1722395445831,-1534.430711,0.00010986,2]
[333712527,1722395445841,-189.655539,0.00010986,2]
[333712528,1722395445850,-189.655539,0.00010986,2]
[333712529,1722395445859,-189.655539,0.00010986,2]
[333712530,1722395445868,-189.655539,0.00010986,2]
[333712531,1722395445880,-2354.856698,0.00010986,2]
[333712532,1722395445889,-2354.856698,0.00010986,2]
[333712533,1722395445899,-2354.856698,0.00010986,2]
[333712534,1722395445909,-2354.856698,0.00010986,2]
[333712535,1722395445919,-2354.856698,0.00010986,2]
[333712536,1722395445928,-2354.856698,0.00010986,2]
[333712537,1722395445939,-151.0,0.00010986,2]
[333712538,1722395445948,-151.0,0.00010986,2]
[333712539,1722395445960,-409.606418,0.00010986,2]
[333712540,1722395445971,-409.606418,0.00010986,2]
[333712541,1722395445982,-409.606418,0.00010986,2]
[333712542,1722395445991,-409.606418,0.00010986,2]
[333712543,1722395446001,-151.0,0.00010986,2]
[333712544,1722395446010,-151.0,0.00010986,2]
[333712545,1722395446022,-151.0,0.00010986,2]
[333712546,1722395446031,-151.0,0.00010986,2]
[333712547,1722395446041,-151.0,0.00010986,2]
[333712548,1722395446050,-151.0,0.00010986,2]
[333712549,1722395446059,-151.0,0.00010986,2]
[333712550,1722395446069,-151.0,0.00010986,2]
[333712551,1722395446078,-151.0,0.00010986,2]
[333712552,1722395446087,-1912.209478,0.00010986,2]
[333712553,1722395446096,-1912.209478,0.00010986,2]
[333712554,1722395446105,-1912.209478,0.00010986,2]
[333712555,1722395446114,-1912.209478,0.00010986,2]
[333712556,1722395446124,-1912.209478,0.00010986,2]
[333712557,1722395446133,-1912.209478,0.00010986,2]
[333712558,1722395446142,-151.0,0.00010986,2]
[333712559,1722395446151,-151.0,0.00010986,2]
[333712560,1722395446161,-151.0,0.00010986,2]
[333712561,1722395446170,-151.0,0.00010986,2]
[333712563,1722395446340,-151.0,0.00010986,2]
[333712564,1722395446351,-151.0,0.00010986,2]
[333712565,1722395446361,-151.0,0.00010986,2]
[333712566,1722395446370,-176.566853,0.00010986,2]
[333712567,1722395446380,-285.615198,0.00010986,2]
[333712568,1722395446391,-285.615198,0.00010986,2]
[333712570,1722395446400,-285.615198,0.00010986,2]
[333712571,1722395446410,-285.615198,0.00010986,2]
[333712572,1722395446419,-285.615198,0.00010986,2]
[333712573,1722395446430,-285.615198,0.00010986,2]
[333712574,1722395446439,-412.541709,0.00010986,2]
[333712575,1722395446449,-412.541709,0.00010986,2]
[333712576,1722395446458,-412.541709,0.00010986,2]
[333712577,1722395446467,-412.541709,0.00010986,2]
[333712578,1722395446477,-412.541709,0.00010986,2]
[333712579,1722395446487,-412.541709,0.00010986,2]
[333712580,1722395446497,-151.0,0.00010986,2]
[333712581,1722395446506,-151.0,0.00010986,2]
[333712582,1722395446518,-151.0,0.00010986,2]
[333712583,1722395446527,-208.736383,0.00010986,2]
[333712584,1722395446537,-208.736383,0.00010986,2]
[333712585,1722395446546,-208.736383,0.00010986,2]
[333712586,1722395446556,-170.239946,0.00010986,2]
[333712587,1722395446565,-208.736383,0.00010986,2]
[333712588,1722395446575,-208.736383,0.00010986,2]
[333712589,1722395446584,-208.736383,0.00010986,2]
[333712590,1722395446594,-151.0,0.00010986,2]
[333712591,1722395446603,-151.0,0.00010986,2]
[333712592,1722395446612,-151.0,0.00010986,2]
[333712593,1722395446622,-151.0,0.00010986,2]
[333712594,1722395446631,-151.0,0.00010986,2]
[333712596,1722395446640,-151.0,0.00010986,2]
[333712598,1722395446650,-361.652872,0.00010986,2]
[333712600,1722395446660,-361.652872,0.00010986,2]
[333712602,1722395446669,-361.652872,0.00010986,2]
[333712604,1722395446678,-151.0,0.00010986,2]
[333712606,1722395446688,-361.652872,0.00010986,2]
[333712608,1722395446697,-361.652872,0.00010986,2]
[333712610,1722395446706,-361.652872,0.00010986,2]
[333712612,1722395446715,-151.0,0.00010986,2]
[333712614,1722395446724,-470.306973,0.00010986,2]
[333712616,1722395446733,-470.306973,0.00010986,2]
[333712618,1722395446742,-470.306973,0.00010986,2]
[333712619,1722395446751,-470.306973,0.00010986,2]
[333712620,1722395446760,-151.0,0.00010986,2]
[333712621,1722395446770,-470.306973,0.00010986,2]
[333712622,1722395446779,-151.0,0.00010986,2]
[333712623,1722395446788,-470.306973,0.00010986,2]
[333712624,1722395446797,-151.0,0.00010986,2]
[333712625,1722395446811,-151.0,0.00010986,2]
[333712626,1722395446820,-151.0,0.00010986,2]
[333712627,1722395446829,-151.0,0.00010986,2]
[333712628,1722395446839,-250.934748,0.00010986,2]
[333712629,1722395446850,-151.0,0.00010986,2]
[333712630,1722395446859,-151.0,0.00010986,2]
[333712631,1722395446868,-151.0,0.00010986,2]
[333712632,1722395446879,-151.0,0.00010986,2]
[333712633,1722395446889,-151.0,0.00010986,2]
[333712634,1722395446899,-151.0,0.00010986,2]
[333712635,1722395446908,-151.0,0.00010986,2]
[333712636,1722395446917,-151.0,0.00010986,2]
[333712637,1722395446926,-151.0,0.00010986,2]
[333712638,1722395446935,-151.0,0.00010986,2]
[333712639,1722395446944,-151.0,0.00010986,2]
[333712640,1722395446953,-151.0,0.00010986,2]
[333712641,1722395446963,-173.355308,0.00010986,2]
[333712642,1722395446972,-173.355308,0.00010986,2]
[333712643,1722395446982,-173.355308,0.00010986,2]
[333712644,1722395446991,-173.355308,0.00010986,2]
[333712645,1722395447000,-173.355308,0.00010986,2]
[333712646,1722395447009,-173.355308,0.00010986,2]
[333712647,1722395447019,-153.216215,0.00010986,2]
[333712648,1722395447028,-153.216215,0.00010986,2]
[333712649,1722395447037,-153.216215,0.00010986,2]
[333712650,1722395447046,-153.216215,0.00010986,2]
[333712651,1722395447056,-153.216215,0.00010986,2]
[333712652,1722395447065,-153.216215,0.00010986,2]
[333712653,1722395447074,-352.273496,0.00010986,2]
[333712656,1722395447083,-352.273496,0.00010986,2]
[333712658,1722395447092,-352.273496,0.00010986,2]
[333712660,1722395447102,-352.273496,0.00010986,2]
[333712662,1722395447111,-352.273496,0.00010986,2]
[333712664,1722395447120,-352.273496,0.00010986,2]
[333712666,1722395447129,-1141.126466,0.00010986,2]
[333712668,1722395447138,-1141.126466,0.00010986,2]
[333712670,1722395447148,-1141.126466,0.00010986,2]
[333712672,1722395447157,-1141.126466,0.00010986,2]
[333712674,1722395447166,-1141.126466,0.00010986,2]
[333712676,1722395447176,-1141.126466,0.00010986,2]
[333712678,1722395447185,-160.315503,0.00010986,2]
[333712680,1722395447195,-160.315503,0.00010986,2]
[333712682,1722395447205,-160.315503,0.00010986,2]
[333712683,1722395447214,-160.315503,0.00010986,2]
[333712684,1722395447224,-160.315503,0.00010986,2]
[333712685,1722395447234,-160.315503,0.00010986,2]
[333712686,1722395447243,-210.655224,0.00010986,2]
[333712687,1722395447253,-210.655224,0.00010986,2]
[333712688,1722395447262,-210.655224,0.00010986,2]
[333712689,1722395447272,-210.655224,0.00010986,2]
[333712690,1722395447282,-210.655224,0.00010986,2]
[333712691,1722395447292,-210.655224,0.00010986,2]
[333712692,1722395447302,-1088.755526,0.00010986,2]
[333712693,1722395447311,-1088.755526,0.00010986,2]
[333712694,1722395447320,-1088.755526,0.00010986,2]
[333712695,1722395447330,-240.309252,0.00010986,2]
[333712696,1722395447339,-240.309252,0.00010986,2]
[333712697,1722395447348,-240.309252,0.00010986,2]
[333712698,1722395447358,-1088.755526,0.00010986,2]
[333712699,1722395447367,-1088.755526,0.00010986,2]
[333712700,1722395447377,-1088.755526,0.00010986,2]
[333712701,1722395447386,-240.309252,0.00010986,2]
[333712702,1722395447396,-240.309252,0.00010986,2]
[333712703,1722395447406,-369.716181,0.00010986,2]
[333712704,1722395447415,-369.716181,0.00010986,2]
[333712705,1722395447424,-369.716181,0.00010986,2]
[333712706,1722395447434,-240.309252,0.00010986,2]
[333712707,1722395447443,-369.716181,0.00010986,2]
[333712708,1722395447452,-369.716181,0.00010986,2]
[333712709,1722395447462,-369.716181,0.00010986,2]
[333712710,1722395447471,-10000.0,0.00010986,2]
[333712711,1722395447481,-10000.0,0.00010986,2]
[333712712,1722395447490,-10000.0,0.00010986,2]
[333712713,1722395447500,-10000.0,0.00010986,2]
[333712714,1722395447509,-151.0,0.00010986,2]
[333712715,1722395447520,-151.0,0.00010986,2]
[333712716,1722395447530,-151.0,0.00010986,2]
[333712717,1722395447539,-151.0,0.00010986,2]
[333712718,1722395447549,-151.0,0.00010986,2]
[333712719,1722395447559,-151.0,0.00010986,2]
[333712720,1722395447568,-151.0,0.00010986,2]
[333712721,1722395447578,-151.0,0.00010986,2]
[333712722,1722395447588,-151.0,0.00010986,2]
[333712723,1722395447598,-151.0,0.00010986,2]
[333712724,1722395447607,-151.0,0.00010986,2]
[333712725,1722395447617,-151.0,0.00010986,2]
[333712726,1722395447626,-151.0,0.00010986,2]
[333712727,1722395447636,-151.0,0.00010986,2]
[333712728,1722395447645,-151.0,0.00010986,2]
[333712729,1722395447655,-151.0,0.00010986,2]
[333712730,1722395447664,-371.1454,0.00010986,2]
[333712731,1722395447674,-371.1454,0.00010986,2]
[333712732,1722395447684,-371.1454,0.00010986,2]
[333712733,1722395447693,-371.1454,0.00010986,2]
[333712734,1722395447702,-160.850779,0.00010986,2]
[333712735,1722395447711,-160.850779,0.00010986,2]
[333712736,1722395447721,-371.1454,0.00010986,2]
[333712737,1722395447730,-160.850779,0.00010986,2]
[333712738,1722395447740,-371.1454,0.00010986,2]
[333712739,1722395447749,-160.850779,0.00010986,2]
[333712740,1722395447759,-371.1454,0.00010986,2]
[333712741,1722395447769,-371.1454,0.00010986,2]
[333712742,1722395447778,-160.850779,0.00010986,2]
[333712743,1722395447788,-160.850779,0.00010986,2]
[333712744,1722395447797,-160.850779,0.00010986,2]
[333712745,1722395447811,-160.850779,0.00010986,2]
[333712746,1722395447821,-2589.862576,0.00010986,2]
[333712747,1722395447830,-2589.862576,0.00010986,2]
[333712748,1722395447840,-2589.862576,0.00010986,2]
[333712749,1722395447851,-2589.862576,0.00010986,2]
[333712750,1722395447861,-151.0,0.00010986,2]
[333712751,1722395447871,-151.0,0.00010986,2]
[333712752,1722395447882,-151.0,0.00010986,2]
[333712753,1722395447892,-151.0,0.00010986,2]
[333712754,1722395447901,-151.0,0.00010986,2]
[333712755,1722395447911,-151.0,0.00010986,2]
[333712756,1722395447921,-151.0,0.00010986,2]
[333712757,1722395447930,-151.0,0.00010986,2]
[333712758,1722395447939,-151.0,0.00010986,2]
[333712759,1722395447948,-151.0,0.00010986,2]
[333712760,1722395447957,-151.0,0.00010986,2]
[333712761,1722395447967,-151.0,0.00010986,2]
[333712762,1722395447976,-151.0,0.00010986,2]
[333712763,1722395447985,-151.0,0.00010986,2]
[333712764,1722395447994,-151.0,0.00010986,2]
[333712765,1722395448003,-216.574418,0.00010986,2]
[333712766,1722395448013,-151.0,0.00010986,2]
[333712767,1722395448024,-151.0,0.00010986,2]
[333712768,1722395448033,-151.0,0.00010986,2]
[333712769,1722395448045,-151.0,0.00010986,2]
[333712770,1722395448055,-151.0,0.00010986,2]
[333712771,1722395448065,-268.394683,0.00010986,2]
[333712772,1722395448074,-151.0,0.00010986,2]
[333712773,1722395448084,-151.0,0.00010986,2]
[333712774,1722395448093,-255.215088,0.00010986,2]
[333712775,1722395448103,-442.303996,0.00010986,2]
[333712776,1722395448112,-442.303996,0.00010986,2]
[333712777,1722395448121,-442.303996,0.00010986,2]
[333712778,1722395448130,-442.303996,0.00010986,2]
[333712779,1722395448141,-442.303996,0.00010986,2]
[333712780,1722395448150,-442.303996,0.00010986,2]
[333712781,1722395448160,-442.303996,0.00010986,2]
[333712782,1722395448170,-442.303996,0.00010986,2]
[333712783,1722395448179,-393.462025,0.00010986,2]
[333712784,1722395448189,-393.462025,0.00010986,2]
[333712785,1722395448199,-393.462025,0.00010986,2]
[333712786,1722395448208,-393.462025,0.00010986,2]
[333712787,1722395448218,-393.462025,0.00010986,2]
[333712788,1722395448227,-393.462025,0.00010986,2]
[333712789,1722395448237,-393.462025,0.00010986,2]
[333712790,1722395448246,-393.462025,0.00010986,2]
[333712791,1722395448256,-162.187659,0.00010986,2]
[333712792,1722395448265,-162.187659,0.00010986,2]
[333712793,1722395448275,-162.187659,0.00010986,2]
[333712794,1722395448284,-162.187659,0.00010986,2]
[333712795,1722395448296,-197.738944,0.00010986,2]
[333712796,1722395448305,-197.738944,0.00010986,2]
[333712797,1722395448314,-162.187659,0.00010986,2]
[333712798,1722395448324,-197.738944,0.00010986,2]
[333712799,1722395448333,-162.187659,0.00010986,2]
[333712800,1722395448342,-197.738944,0.00010986,2]
[333712801,1722395448352,-162.187659,0.00010986,2]
[333712802,1722395448362,-162.187659,0.00010986,2]
[333712803,1722395448372,-197.738944,0.00010986,2]
[333712804,1722395448381,-197.738944,0.00010986,2]
[333712805,1722395448390,-197.738944,0.00010986,2]
[333712806,1722395448400,-197.738944,0.00010986,2]
[333712807,1722395448409,-151.0,0.00010986,2]
[333712808,1722395448419,-151.0,0.00010986,2]
[333712809,1722395448428,-151.0,0.00010986,2]
[333712810,1722395448437,-151.0,0.00010986,2]
[333712811,1722395448447,-151.0,0.00010986,2]
[333712812,1722395448456,-151.0,0.00010986,2]
[333712813,1722395448466,-151.0,0.00010986,2]
[333712814,1722395448476,-151.0,0.00010986,2]
[333712815,1722395448485,-184.828833,0.00010986,2]
[333712816,1722395448495,-184.828833,0.00010986,2]
[333712817,1722395448504,-184.828833,0.00010986,2]
[333712818,1722395448514,-184.828833,0.00010986,2]
[333712819,1722395448525,-184.828833,0.00010986,2]
[333712820,1722395448535,-184.828833,0.00010986,2]
[333712821,1722395448545,-184.828833,0.00010986,2]
[333712822,1722395448555,-184.828833,0.00010986,2]
[333712823,1722395448564,-3128.242242,0.00010986,2]
[333712824,1722395448574,-3128.242242,0.00010986,2]
[333712825,1722395448583,-3128.242242,0.00010986,2]
[333712826,1722395448592,-3128.242242,0.00010986,2]
[333712827,1722395448602,-287.931746,0.00010986,2]
[333712828,1722395448611,-3128.242242,0.00010986,2]
[333712829,1722395448621,-287.931746,0.00010986,2]
[333712830,1722395448631,-3128.242242,0.00010986,2]
[333712831,1722395448641,-287.931746,0.00010986,2]
[333712832,1722395448651,-3128.242242,0.00010986,2]
[333712833,1722395448660,-287.931746,0.00010986,2]
[333712834,1722395448670,-3128.242242,0.00010986,2]
[333712835,1722395448679,-287.931746,0.00010986,2]
[333712836,1722395448688,-287.931746,0.00010986,2]
[333712837,1722395448698,-287.931746,0.00010986,2]
[333712838,1722395448707,-184.895004,0.00010986,2]
[333712839,1722395448716,-287.931746,0.00010986,2]
[333712840,1722395448725,-184.895004,0.00010986,2]
[333712841,1722395448735,-184.895004,0.00010986,2]
[333712842,1722395448744,-184.895004,0.00010986,2]
[333712843,1722395448753,-184.895004,0.00010986,2]
[333712844,1722395448762,-184.895004,0.00010986,2]
[333712845,1722395448772,-184.895004,0.00010986,2]
[333712846,1722395448782,-184.895004,0.00010986,2]
[333712847,1722395448934,-187.180114,0.00010986,2]
[333712848,1722395448961,-187.180114,0.00010986,2]
[333712849,1722395448970,-187.180114,0.00010986,2]
[333712850,1722395448980,-187.180114,0.00010986,2]
[333712851,1722395448989,-148680.0,0.00010986,2]
[333712852,1722395448999,-161415.0,0.00010986,2]
[333712853,1722395449008,-579.0,0.00010986,2]
[333712854,1722395449017,-346.1278512,0.00010994,2]
[333712855,1722395449026,-4083.8362295,0.00010994,2]
[333712856,1722395449036,-16588.3614096,0.00010994,2]
[333712857,1722395449045,-2038.529422,0.00010994,2]
[333712858,1722395449054,-2038.6780278,0.00010997,2]
[333712859,1722395449064,-3485.88053008,0.00010997,2]
[333712860,1722395449074,-83781.82058009,0.00011,2]
[333712861,1722395449083,-636281.71676419,0.00011,2]
[333712862,1722395450009,-187.180114,0.00010881,2]
[333712863,1722395450021,-374.79839052,0.00011,2]
[333712864,1722395450033,-383.92304336,0.00011,2]
[333712865,1722395450046,-2371.47496843,0.00011,2]
[333712866,1722395450059,-1596.88006637,0.00011,2]
[333712867,1722395450071,-6446.44,0.00011,2]
[333712868,1722395450099,-244.9219133,0.0001087,2]
[333712869,1722395450109,-2077.2037224,0.00011,2]
[333712870,1722395450121,-340.78144659,0.00011,2]
[333712871,1722395450132,-782.77931771,0.00011,2]
[333712872,1722395450144,-1826.64201128,0.00011,2]
[333712873,1722395450588,-501.26888829,0.00010818,2]
[333712874,1722395450598,-244.9219133,0.000109,2]
[333712875,1722395450608,-187.180114,0.00010985,2]
[333712876,1722395450618,-187.180114,0.00010986,2]
[333712877,1722395450627,-187.180114,0.00010986,2]
[333712878,1722395450637,-187.180114,0.00010986,2]
[333712879,1722395450646,-187.180114,0.00010986,2]
[333712880,1722395450656,-4635.37440675,0.00011,2]
[333712881,1722395450668,-17968.32126263,0.00011,2]
[333712882,1722395450680,-2303.3542542,0.00011,2]
[333712883,1722395450690,-22163.18622214,0.00011,2]
[333712884,1722395450702,-20316.31185012,0.00011,2]
[333712885,1722395450713,-3292.164575,0.00011,2]
[333712886,1722395450725,-1026.45642444,0.00011,2]
[333712887,1722395450736,-14435.04513219,0.00011,2]
[333712888,1722395450753,-1087.95897252,0.00011,2]
[333712889,1722395450764,-650.96828781,0.00011,2]
[333712890,1722395450777,-726.15560432,0.00011,2]
[333712891,1722395450788,-8047.36758596,0.00011,2]
[333712892,1722395450799,-39193.23861801,0.00011,2]
[333712893,1722395450815,-709.17,0.00011,2]
[333712894,1722395450826,-23521.76724492,0.00011,2]
[333712895,1722395450869,-500.0,0.00010999,2]
[333712896,1722395450879,-2035.49260384,0.00011,2]
[333712897,1722395450914,-255.42672206,0.00010999,2]
[333712898,1722395451117,-3628.01519306,0.00011,2]
[333712899,1722395451128,-3481.9,0.00011,2]
[333712900,1722395451140,-2447.91218181,0.00011,2]
[333712901,1722395451161,-284.89365245,0.00011,2]
[333712902,1722395451173,-8187.765211,0.00011,2]
[333712903,1722395451184,-753.31580705,0.00011,2]
[333712904,1722395451196,-16344.51668327,0.00011,2]
[333712905,1722395451208,-376.58731798,0.00011,2]
[333712906,1722395451220,-350.61399826,0.00011,2]
[333712907,1722395451232,-456.77284759,0.00011,2]
[333712909,1722395683198,155.68,0.0001337,30]
[333712910,1722395983053,408.0654762,0.00027,120]
[333712914,1722396156864,155.68,0.0001337,30]
[333712945,1722396631782,-269.51,8.273e-05,2]
[333712946,1722396631791,-357.57000007,0.0001,2]
[333712947,1722396631803,-404.72999987,0.0001,2]
[333712948,1722396631814,-404.7199998,0.0001,2]
[333712949,1722396631825,-956.87880608,0.0001,2]
[333712950,1722396631837,-626.12501082,0.0001,2]
[333712951,1722396631848,-1095.19142246,0.0001,2]
[333712952,1722396631860,-4305.39431535,0.0001,2]
[333712953,1722396631869,-480.0,0.00010098,2]
[333712954,1722396631879,-531.0,0.00010186,2]
[333712955,1722396631888,-520.0,0.0001033,2]
[333712956,1722396631898,-300.0,0.00010495,2]
[333712957,1722396631908,-300.0,0.00010496,2]
[333712958,1722396631917,-1441.65722218,0.00010497,2]
[333712959,1722396631942,-1085.57086794,0.00010497,2]
[333712960,1722396631954,-34412.90473083,0.00010497,2]
[333712961,1722396631963,-150.0,0.00010499,2]
[333712962,1722396631972,-9383.69512743,0.000105,2]
[333712963,1722396631983,-269.51,0.00010537,2]
[333712964,1722396631992,-1384.2341,0.00010785,2]
[333712965,1722396632001,-519.449,0.00010822,2]
[333712966,1722396632010,-6050.24,0.000109,2]
[333712967,1722396632020,-1398.96667614,0.000109,2]
[333712968,1722396632030,-2213.44747643,0.000109,2]
[333712969,1722396632039,-2088.24038154,0.0001099,2]
[333712970,1722396632049,-44930.63298115,0.0001099,2]
[333712971,1722396632058,-34176.995851,0.00010998,2]
[333712972,1722396632067,-493.6057054,0.00010998,2]
[333712973,1722396632077,-2244.07797008,0.00010998,2]
[333712974,1722396632088,-255.97559429,0.00010998,2]
[333712975,1722396632099,-1063.98813383,0.00010998,2]
[333712976,1722396632108,-423.37205,0.00010998,2]
[333712977,1722396632117,-9732.3715956,0.00010998,2]
[333712978,1722396632126,-453.02172243,0.00011,2]
[333712979,1722396632135,-7535.096572,0.00011,2]
[333712980,1722396632146,-4762.9423119,0.00011,2]
[333712981,1722396632157,-544.02,0.00011,2]
[333712982,1722396632185,-600.0,0.00011,2]
[333712983,1722396632196,-499.6,0.00011,2]
[333712984,1722396632207,-999.9006,0.00011,2]
[333712985,1722396632219,-1000.3932,0.00011,2]
[333712986,1722396632231,-3682.03172911,0.00011,2]
[333713010,1722396637857,-925.30673529,0.00011,2]
[333713012,1722396637868,-397.20126813,0.00011,2]
[333713016,1722396638233,-706.75640713,0.00011,2]
[333713017,1722396638245,-81189.54250585,0.00011,2]
[333713018,1722396638257,-49265.82075205,0.00011,2]
[333713019,1722396638269,-1438.26614724,0.00011,2]
[333713020,1722396638281,-1270.96394831,0.00011,2]
[333713021,1722396638292,-5000.0,0.00011,2]
[333713022,1722396638303,-1803.74252171,0.00011,2]
[333713023,1722396638314,-1163.51090331,0.00011,2]
[333713024,1722396638327,-6062.9094044,0.00011,2]
[333713025,1722396638338,-484.5265281,0.00011,2]
[333713179,1722396639903,-75876.31887851,0.00011,2]
[333713264,1722396640736,-1649.69314155,0.00011,2]
[333713267,1722396640755,-514.63207778,0.00011,2]
[333713270,1722396640768,-1736.41306025,0.00011,2]
[333713272,1722396640779,-2054.96527202,0.00011,2]
[333713274,1722396640790,-306.8441376,0.00011,2]
[333713276,1722396640801,-104124.13947879,0.00011,2]
[333713278,1722396640812,-503.44576083,0.00011,2]
[333713395,1722396643031,-11993.46920859,0.00011,2]
[333713396,1722396643192,-939.05636559,0.00011,2]
[333713397,1722396643204,-204036.86795203,0.00011,2]
[333713398,1722396643215,-294.14994472,0.00011,2]
[333713399,1722396643228,-7140.0,0.00011,2]
[333713400,1722396643243,-563.33350544,0.00011,2]
[333713403,1722396645746,-2499.18517507,0.00011,2]
[333713430,1722396645884,-518.7,0.00011,2]
[333713432,1722396645895,-1824.96786829,0.00011,2]
[333713434,1722396645907,-8373.10115756,0.00011,2]
[333713446,1722396646020,-6820.37072697,0.00011,2]
[333713447,1722396646032,-6516.79627758,0.00011,2]
[333713448,1722396646046,-6722.5665,0.00011,2]
[333713449,1722396655691,157.7,0.0001337,30]
[333713453,1722397093853,-171.3,8.182e-05,2]
[333713454,1722397093876,-277.73,8.455e-05,2]
[333713455,1722397093896,-440.33351892,8.455e-05,2]
[333713456,1722397099728,489.0,8.454e-05,2]
[333713457,1722397142591,962.59045432,8.454e-05,2]
[333713458,1722397159978,759.85499635,8.454e-05,2]
[333713460,1722397177627,1308.98979149,8.454e-05,2]
[333713461,1722397185639,155.0844574,8.454e-05,2]
[333713462,1722397187376,157.7,0.0001337,30]
[333713463,1722397191024,617.81199359,8.454e-05,2]
[333713464,1722397230367,324.90478793,8.454e-05,2]
[333713467,1722397405336,958.19376439,0.00027,120]
[333713469,1722397757859,157.7,0.0001337,30]
[333713477,1722397831808,-263.84,8.219e-05,2]
[333713478,1722397831818,-1250.0,0.0001,2]
[333713479,1722397831827,-616.0,0.00010021,2]
[333713480,1722397831837,-384.0,0.00010067,2]
[333713481,1722397831848,-1323.3,0.00010173,2]
[333713482,1722397831858,-300.0,0.00010246,2]
[333713483,1722397831867,-300.0,0.00010246,2]
[333713484,1722397831876,-155.3707921,0.00010247,2]
[333713485,1722397831886,-200.41754119,0.00010247,2]
[333713486,1722397831897,-237.66639097,0.00010247,2]
[333713487,1722397831907,-947.67050708,0.00010247,2]
[333713488,1722397831916,-1743.90949909,0.00010289,2]
[333713489,1722397831926,-263.84,0.00010479,2]
[333713490,1722397831936,-6941.0,0.00010567,2]